[Event "EIWCC 2018"]
[Site "Vysoke Tatry"]
[Date "2018.04.08"]
[Round "1"]
[White "Gaponenko, Inna"]
[Black "Zherebtsova, Alexandra"]
[Result "1/2-1/2"]
[ECO "C68"]
[WhiteElo "2406"]
[BlackElo "2202"]
[Annotator "RC"]
[PlyCount "137"]
[EventDate "2018.??.??"]
[EventType "swiss"]
[EventCountry "SVK"]
[SourceTitle "playchess.com"]
[Source "ChessBase"]
[SourceQuality "1"]
[TimeControl "40/5400+30:1800+30"]

1. e4 {[%emt 0:00:00]} e5 {[%emt 0:00:02]} 2. Nf3 {[%emt 0:00:00]} Nc6 {[%emt 0:00:03]} 3. Bb5 {[%emt 0:00:00]} a6 {[%emt 0:00:02]} 4. Bxc6 {[%emt 0:00:00]} dxc6 {[%emt 0:00:04]} 5. Nc3 {[%emt 0:00:03]} Qd6 {[%emt 0:01:47]} 6. d4 {[%emt 0:02:04]} exd4 {[%emt 0:00:05]} 7. Qxd4 {[%emt 0:00:06]} Bg4 {[%emt 0:02:15]} 8. Be3 {[%emt 0:01:40]} Bxf3 {[%emt 0:03:06]} 9. gxf3 {[%emt 0:00:49]} Qxd4 {[%emt 0:01:27]} 10. Bxd4 {[%emt 0:00:06]} O-O-O {[%emt 0:06:52]} 11. O-O-O {[%emt 0:04:06]} Ne7 {[%emt 0:14:19]} 12. f4 {[%emt 0:09:46]} f5 {[%emt 0:03:57]} 13. f3 {[%emt 0:02:27]} Ng6 {[%emt 0:21:46]} 14. exf5 {[%emt 0:04:38]} Nxf4 {[%emt 0:00:22]} 15. Be5 {[%emt 0:38:48]} Nh5 {[%emt 0:08:20]} 16. Rxd8+ {[%emt 0:00:10]} Kxd8 {[%emt 0:00:03]} 17. Rd1+ {[%emt 0:00:09]} Kc8 {[%emt 0:01:51]} 18. Ne4 {[%emt 0:01:00]} Be7 {[%emt 0:04:35]} 19. Bxg7 {[%emt 0:01:21]} Nxg7 {[%emt 0:01:27]} 20. f6 {[%emt 0:00:04]} Bf8 {[%emt 0:01:39]} 21. fxg7 {[%emt 0:01:37]} Bxg7 {[%emt 0:00:02]} 22. c3 {[%emt 0:09:38]} Be5 {[%emt 0:05:06]} 23. h3 {[%emt 0:00:11]} Rg8 {[%emt 0:05:17]} 24. Kc2 {[%emt 0:00:49]} b6 {[%emt 0:03:58]} 25. Kd3 {[%emt 0:13:41]} Rg2 {[%emt 0:09:15]} 26. Rd2 {[%emt 0:00:23]} Rg1 {[%emt 0:00:06]} 27. Re2 {[%emt 0:05:52]} Bf4 {[%emt 0:02:31]} 28. Nf6 {[%emt 0:02:43]} Rh1 {[%emt 0:01:44]} 29. Ke4 {[%emt 0:01:12]} Bd6 {[%emt 0:00:51]} 30. Nxh7 {[%emt 0:00:04]} Rxh3 {[%emt 0:00:03]} 31. Nf6 {[%emt 0:00:44]} Be7 {[%emt 0:02:09]} 32. Ng4 {[%emt 0:00:08]} Rg3 {[%emt 0:00:37]} 33. Ne3 {[%emt 0:01:28]} Rg8 {[%emt 0:00:36]} 34. f4 {[%emt 0:00:17]} Kd7 {[%emt 0:00:37]} 35. Kf3 {[%emt 0:00:35]} Bd6 {[%emt 0:00:15]} 36. Nc4 {[%emt 0:00:26]} Rf8 {[%emt 0:00:35]} 37. Ne5+ {[%emt 0:00:25]} Bxe5 {[%emt 0:00:17]} 38. Rxe5 {[%emt 0:00:03]} Kd6 {[%emt 0:00:18]} 39. Kg4 {[%emt 0:00:39]} Rg8+ {[%emt 0:00:09]} 40. Rg5 {[%emt 0:00:00]} Re8 {[%emt 0:00:22]} 41. Rg6+ {[%emt 0:01:02]} Kd5 {[%emt 0:03:04]} 42. Rg5+ {[%emt 0:21:15]} Kd6 {[%emt 0:08:39]} 43. Kf3 {[%emt 0:00:05]} Re1 {[%emt 0:11:15]} 44. Rg2 {[%emt 0:00:18]} Rf1+ {[%emt 0:02:07]} 45. Rf2 {[%emt 0:00:22]} Ra1 {[%emt 0:00:34]} 46. Re2 {[%emt 0:01:04]} Rxa2 {[%emt 0:02:51]} 47. f5 {[%emt 0:00:04]} Ra1 {[%emt 0:01:49]} 48. Kg4 {[%emt 0:00:25]} Rf1 {[%emt 0:04:36]} 49. Kg5 {[%emt 0:00:04]} Kc5 {[%emt 0:00:22]} 50. f6 {[%emt 0:02:45]} Kc4 {[%emt 0:00:06]} 51. Re4+ {[%emt 0:03:32]} Kb3 {[%emt 0:00:59]} 52. Rf4 {[%emt 0:00:04]} Rg1+ {[%emt 0:00:08]} 53. Kf5 {[%emt 0:00:04]} Rg8 {[%emt 0:00:10]} 54. Rf2 {[%emt 0:00:04]} a5 {[%emt 0:00:13]} 55. Ke6 {[%emt 0:03:45]} a4 {[%emt 0:00:50]} 56. f7 {[%emt 0:01:24]} Rh8 {[%emt 0:00:32]} 57. Kd7 {[%emt 0:00:07]} c5 {[%emt 0:00:44]} 58. Kxc7 {[%emt 0:00:25]} b5 {[%emt 0:00:12]} 59. Kb6 {[%emt 0:01:38]} b4 {[%emt 0:00:05]} 60. Kxc5 {[%emt 0:00:15]} bxc3 {[%emt 0:00:47]} 61. bxc3 {[%emt 0:00:13]} Rf8 {[%emt 0:01:17]} 62. c4 {[%emt 0:02:38]} a3 {[%emt 0:00:16]} 63. Rf3+ {[%emt 0:00:10]} Kb2 {[%emt 0:00:12]} 64. Rf2+ {[%emt 0:00:28]} Kb3 {[%emt 0:00:11]} 65. Rf3+ {[%emt 0:00:04]} Kb2 {[%emt 0:00:04]} 66. Kd6 {[%emt 0:01:57]} a2 {[%emt 0:00:53]} 67. Rf2+ {[%emt 0:00:05]} Kb3 {[%emt 0:00:23]} 68. Rxa2 {[%emt 0:00:09]} Rxf7 {[%emt 0:00:22]} 69. Rh2 {[%emt 0:00:13]} 1/2-1/2

[Event "EIWCC 2018"]
[Site "Vysoke Tatry"]
[Date "2018.04.08"]
[Round "1"]
[White "Mkrtchian, Lilit"]
[Black "Ptacnikova, Lenka"]
[Result "1/2-1/2"]
[ECO "A06"]
[WhiteElo "2403"]
[BlackElo "2198"]
[Annotator "NA RC"]
[PlyCount "76"]
[EventDate "2018.??.??"]
[EventType "swiss"]
[EventCountry "SVK"]
[SourceTitle "playchess.com"]
[Source "ChessBase"]
[SourceQuality "1"]
[TimeControl "40/5400+30:1800+30"]

1. Nf3 {[%emt 0:00:00]} d5 {[%emt 0:01:06]} 2. e3 {[%emt 0:01:23]} Nf6 {[%emt 0:01:26]} 3. c4 {[%emt 0:01:19]} e6 {[%emt 0:00:36]} 4. b3 {[%emt 0:01:11]} Be7 {[%emt 0:00:20]} 5. Bb2 {[%emt 0:00:15]} O-O {[%emt 0:00:20]} 6. Nc3 {[%emt 0:00:16]} b6 {[%emt 0:06:03]} 7. d4 {[%emt 0:07:33]} Bb7 {[%emt 0:03:49]} 8. Bd3 {[%emt 0:00:08]} dxc4 {[%emt 0:02:09]} 9. bxc4 {[%emt 0:00:06]} c5 {[%emt 0:05:46]} 10. O-O {[%emt 0:01:20]} cxd4 {[%emt 0:01:52]} 11. exd4 {[%emt 0:00:19]} Nc6 {[%emt 0:00:40]} 12. Qe2 {[%emt 0:03:20]} Nb4 {[%emt 0:09:56] E14: Queen's Indian: Classical Variation (4 e3)} 13. Rfd1 {[%emt 0:38:06]} (13. Bb1 Bxf3 14. gxf3 Re8 15. Rd1 Qc7 16. a3 Nc6 17. d5 exd5 18. Nxd5 Qc8 19. Qd3 Qh3 20. Bc2 Nxd5 21. cxd5 {½-½ (38) Frey Beckman,K (2384)-Herrera Ortiz,M (2309) Mexico City 2017}) 13... Nxd3 {[%emt 0:00:46]} 14. Rxd3 {[%emt 0:00:28]} Ba6 $146 {[%emt 0:07:17]} ({Predecessor:} 14... Rc8 15. Ne5 Nd7 16. Nxd7 Qxd7 17. d5 Bf6 18. Rg3 Kh8 19. Rd1 exd5 20. Nxd5 Bxb2 21. Qxb2 {½-½ (44) Schmidt,G (2165)-Nitsche,D (2210) Bayern 1997}) 15. Nb5 {[%emt 0:06:01]} Bxb5 {[%emt 0:08:17]} 16. cxb5 {[%emt 0:00:12]} a6 {[%emt 0:00:33]} 17. Rb3 {[%emt 0:02:49]} axb5 {[%emt 0:06:59]} 18. Qxb5 {[%emt 0:00:24]} Nd5 {[%emt 0:00:30]} 19. Ne5 {[%emt 0:00:57]} Ra5 {[%emt 0:08:29]} 20. Qc6 {[%emt 0:09:43]} Qa8 {[%emt 0:07:53]} 21. a3 {[%emt 0:02:30]} Rc8 {[%emt 0:02:10]} 22. Qxa8 $17 {[%emt 0:00:31]} Raxa8 {[%emt 0:00:07]} 23. Kf1 {[%emt 0:05:32]} h5 {[%emt 0:04:13]} 24. Rc1 {[%emt 0:04:22]} Rxc1+ {[%emt 0:00:43]} 25. Bxc1 {[%emt 0:00:04]} Rc8 {[%emt 0:01:05]} 26. Bb2 {[%emt 0:00:52]} Rc2 {[%emt 0:01:40]} 27. g3 {[%emt 0:02:48]} g5 {[%emt 0:04:53]} 28. h3 {[%emt 0:02:07]} Kg7 {[%emt 0:00:54]} 29. Ke1 {[%emt 0:00:55]} Bd6 {[%emt 0:02:22]} 30. Nf3 {[%emt 0:00:57]} f6 {[%emt 0:00:59]} 31. Nd2 {[%emt 0:00:17]} Kg6 {[%emt 0:01:07]} 32. Kd1 {[%emt 0:00:15]} Rc8 {[%emt 0:00:21]} 33. Ne4 {[%emt 0:03:06]} Bc7 {[%emt 0:04:04]} 34. Nc3 {[%emt 0:03:16]} Ne7 {[%emt 0:02:37]} 35. Nb5 {[%emt 0:00:44]} Bb8 {[%emt 0:00:10]} 36. Nc3 {[%emt 0:01:52]} Bc7 {[%emt 0:00:18]} 37. Nb5 {[%emt 0:00:08]} Bb8 {[%emt 0:00:08]} 38. Nc3 {[%emt 0:01:17]} Bc7 {[%emt 0:01:19]} 1/2-1/2

[Event "EIWCC 2018"]
[Site "Vysoke Tatry"]
[Date "2018.04.08"]
[Round "1"]
[White "Arabidze, Meri"]
[Black "Ghukasyan, Siranush"]
[Result "1/2-1/2"]
[ECO "D31"]
[WhiteElo "2393"]
[BlackElo "2195"]
[Annotator "NA RC"]
[PlyCount "97"]
[EventDate "2018.??.??"]
[EventType "swiss"]
[EventCountry "SVK"]
[SourceTitle "playchess.com"]
[Source "ChessBase"]
[SourceQuality "1"]
[TimeControl "40/5400+30:1800+30"]

1. d4 {[%emt 0:00:00]} d5 {[%emt 0:00:08]} 2. c4 {[%emt 0:00:00]} e6 {[%emt 0:00:03]} 3. Nc3 {[%emt 0:00:00]} Be7 {[%emt 0:01:42]} 4. cxd5 {[%emt 0:00:00]} exd5 {[%emt 0:00:05]} 5. Bf4 {[%emt 0:00:00]} c6 {[%emt 0:00:15]} 6. e3 {[%emt 0:00:04]} Bf5 {[%emt 0:00:12]} 7. g4 {[%emt 0:00:17]} Be6 {[%emt 0:00:11]} 8. h4 {[%emt 0:00:20]} Bxh4 {[%emt 0:26:10]} 9. Qb3 {[%emt 0:00:18]} g5 {[%emt 0:02:09]} 10. Be5 {[%emt 0:14:58]} f6 {[%emt 0:00:18]} 11. Bxb8 {[%emt 0:04:16]} Rxb8 {[%emt 0:01:42]} 12. Nf3 {[%emt 0:01:08]} Bxg4 {[%emt 0:03:17]} 13. Nxh4 {[%emt 0:00:40]} gxh4 {[%emt 0:00:04]} 14. Be2 {[%emt 0:05:14]} f5 {[%emt 0:02:53]} 15. O-O-O {[%emt 0:01:11]} Qe7 {[%emt 0:08:20]} 16. Qa4 {[%emt 0:12:06]} Bxe2 {[%emt 0:25:35]} 17. Qxa7 $11 {[%emt 0:06:57]} Rc8 {[%emt 0:03:22]} 18. Nxe2 {[%emt 0:00:07]} Nh6 {[%emt 0:00:22]} 19. Nf4 {[%emt 0:04:13]} Ng4 {[%emt 0:03:26]} 20. Nd3 {[%emt 0:00:03]} O-O {[%emt 0:02:06]} 21. Qc5 {[%emt 0:02:12]} Qf6 {[%emt 0:01:45]} 22. Rh3 {[%emt 0:05:15]} Rf7 {[%emt 0:12:55]} 23. Rdh1 {[%emt 0:04:11]} Qe6 {[%emt 0:01:45]} 24. Qc2 {[%emt 0:03:04]} c5 {[%emt 0:02:07]} 25. dxc5 {[%emt 0:00:24]} b6 {[%emt 0:00:13]} 26. Rxh4 {[%emt 0:04:15]} bxc5 27. Nf4 {[%emt 0:03:12]} Qe4 {[%emt 0:01:22]} 28. Qd1 {[%emt 0:06:37]} Ra8 {[%emt 0:00:20]} 29. Qxd5 {[%emt 0:02:12]} Qxd5 {[%emt 0:00:06]} 30. Nxd5 {[%emt 0:00:06]} Rxa2 {[%emt 0:01:51]} 31. Kb1 {[%emt 0:02:01]} Raa7 {[%emt 0:00:04]} 32. e4 {[%emt 0:08:21]} Nxf2 {[%emt 0:00:41]} 33. Rg1+ {[%emt 0:00:10]} Kf8 {[%emt 0:00:46]} 34. e5 {[%emt 0:00:38]} Ne4 {[%emt 0:00:42]} 35. Rf4 {[%emt 0:03:55]} Ra6 {[%emt 0:00:10]} 36. Ne3 {[%emt 0:02:02]} Re6 {[%emt 0:00:16]} 37. Nc4 {[%emt 0:00:35]} Rg6 {[%emt 0:00:27]} 38. Rd1 {[%emt 0:04:02]} Ke7 {[%emt 0:01:01]} 39. Rf3 {[%emt 0:01:36]} Rg3 {[%emt 0:00:16]} 40. Rff1 {[%emt 0:00:00]} h5 {[%emt 0:00:48]} 41. Nd6 {[%emt 0:08:46]} Nxd6 {[%emt 0:00:27]} 42. exd6+ {[%emt 0:00:11]} Kd7 {[%emt 0:00:06]} 43. Rd5 {[%emt 0:00:36]} f4 {[%emt 0:04:56]} 44. Rxc5 {[%emt 0:04:11]} Kxd6 {[%emt 0:03:14]} 45. Rxh5 {[%emt 0:00:08]} f3 {[%emt 0:00:28]} 46. Kc2 {[%emt 0:07:18]} Rg2+ {[%emt 0:03:08]} 47. Kc3 {[%emt 0:00:48]} f2 {[%emt 0:01:02]} 48. Kd2 {[%emt 0:03:08]} Rb7 {[%emt 0:02:51]} 49. Kc2 {[%emt 0:00:21]} 1/2-1/2

[Event "EIWCC 2018"]
[Site "Vysoke Tatry"]
[Date "2018.04.08"]
[Round "1"]
[White "Sliwicka, Alicja"]
[Black "Kejzar, Petra"]
[Result "0-1"]
[ECO "B47"]
[WhiteElo "2329"]
[BlackElo "2071"]
[Annotator "RC"]
[PlyCount "146"]
[EventDate "2018.??.??"]
[EventType "swiss"]
[EventCountry "SVK"]
[SourceTitle "playchess.com"]
[Source "ChessBase"]
[SourceQuality "1"]
[TimeControl "40/5400+30:1800+30"]

1. e4 {[%emt 0:00:00]} c5 {[%emt 0:00:06]} 2. Nf3 {[%emt 0:00:00]} e6 {[%emt 0:00:05]} 3. d4 {[%emt 0:00:00]} cxd4 {[%emt 0:00:04]} 4. Nxd4 {[%emt 0:00:00]} Nc6 {[%emt 0:00:17]} 5. Nc3 {[%emt 0:00:04]} Qc7 {[%emt 0:00:20]} 6. Be2 {[%emt 0:00:12]} a6 {[%emt 0:00:23]} 7. O-O {[%emt 0:00:26]} b5 {[%emt 0:01:49]} 8. Be3 {[%emt 0:02:01]} Nf6 {[%emt 0:01:05]} 9. a3 {[%emt 0:09:31]} Bb7 {[%emt 0:01:24]} 10. f4 {[%emt 0:09:29]} d6 {[%emt 0:12:49]} 11. Qe1 {[%emt 0:05:48]} h5 {[%emt 0:03:02]} 12. Bf3 {[%emt 0:16:44]} Be7 {[%emt 0:06:09]} 13. a4 {[%emt 0:12:14]} b4 {[%emt 0:00:56]} 14. Na2 {[%emt 0:00:47]} Nxd4 {[%emt 0:06:34]} 15. Bxd4 {[%emt 0:00:08]} e5 {[%emt 0:03:42]} 16. Bf2 {[%emt 0:02:18]} a5 {[%emt 0:03:27]} 17. c3 {[%emt 0:09:01]} b3 {[%emt 0:03:40]} 18. Nc1 {[%emt 0:00:05]} Qc4 {[%emt 0:03:50]} 19. Be2 {[%emt 0:01:30]} Qxe4 {[%emt 0:01:13]} 20. Bb5+ {[%emt 0:00:15]} Kf8 {[%emt 0:01:32]} 21. Qxe4 {[%emt 0:00:11]} Nxe4 {[%emt 0:01:00]} 22. fxe5 {[%emt 0:02:47]} dxe5 {[%emt 0:00:25]} 23. Nxb3 {[%emt 0:01:01]} Nxf2 {[%emt 0:03:38]} 24. Rxf2 {[%emt 0:00:58]} Rh6 {[%emt 0:06:17]} 25. Rf5 {[%emt 0:03:00]} Rg6 {[%emt 0:06:34]} 26. g3 {[%emt 0:01:07]} h4 {[%emt 0:01:57]} 27. Rh5 {[%emt 0:04:50]} Kg8 {[%emt 0:01:13]} 28. Bd3 {[%emt 0:03:11]} e4 {[%emt 0:02:49]} 29. Be2 {[%emt 0:00:12]} hxg3 {[%emt 0:02:07]} 30. hxg3 {[%emt 0:01:20]} Rxg3+ {[%emt 0:00:55]} 31. Kf2 {[%emt 0:00:22]} Rg5 {[%emt 0:01:15]} 32. Rxg5 {[%emt 0:03:26]} Bxg5 {[%emt 0:00:01]} 33. Nc5 {[%emt 0:01:00]} e3+ {[%emt 0:03:27]} 34. Kg3 {[%emt 0:02:37]} Bc8 {[%emt 0:01:07]} 35. Ne4 {[%emt 0:02:10]} Bh6 {[%emt 0:00:27]} 36. b4 {[%emt 0:00:36]} f5 {[%emt 0:01:01]} 37. Bc4+ {[%emt 0:00:58]} Kh7 {[%emt 0:00:53]} 38. Nd6 {[%emt 0:02:31]} Bd7 {[%emt 0:08:05]} 39. Bd3 {[%emt 0:02:33]} g6 {[%emt 0:00:22]} 40. b5 {[%emt 0:00:00]} Bf8 {[%emt 0:08:36]} 41. Nc4 {[%emt 0:02:29]} Bc5 {[%emt 0:00:44]} 42. Re1 {[%emt 0:03:05]} Rf8 {[%emt 0:09:15]} 43. Nxa5 {[%emt 0:02:09]} f4+ {[%emt 0:01:39]} 44. Kf3 {[%emt 0:00:26]} Kg7 {[%emt 0:03:51]} 45. Nb7 {[%emt 0:04:52]} Be7 {[%emt 0:00:54]} 46. a5 {[%emt 0:01:49]} g5 {[%emt 0:00:13]} 47. a6 {[%emt 0:01:23]} g4+ {[%emt 0:00:11]} 48. Ke2 {[%emt 0:01:50]} g3 {[%emt 0:05:18]} 49. Kf3 {[%emt 0:01:08]} Kh6 {[%emt 0:06:00]} 50. a7 {[%emt 0:04:47]} Kg5 {[%emt 0:00:43]} 51. Ra1 {[%emt 0:01:42]} Bg4+ {[%emt 0:00:56]} 52. Kg2 {[%emt 0:00:12]} Rh8 {[%emt 0:06:37]} 53. a8=Q {[%emt 0:02:03]} f3+ {[%emt 0:00:18]} 54. Kg1 {[%emt 0:00:32]} f2+ {[%emt 0:00:28]} 55. Kg2 {[%emt 0:00:18]} Rxa8 {[%emt 0:03:09]} 56. Rxa8 {[%emt 0:00:07]} e2 {[%emt 0:01:57]} 57. Bxe2 {[%emt 0:00:23]} Bxe2 {[%emt 0:00:06]} 58. Ra1 {[%emt 0:00:07]} Kf4 {[%emt 0:00:43]} 59. Na5 {[%emt 0:09:07]} Bc5 {[%emt 0:00:47]} 60. Ra4+ {[%emt 0:01:11]} Ke3 {[%emt 0:01:02]} 61. Nc4+ {[%emt 0:00:14]} Kd3 {[%emt 0:00:50]} 62. Ne5+ {[%emt 0:00:30]} Kxc3 {[%emt 0:00:29]} 63. Ra1 {[%emt 0:00:51]} Bd6 {[%emt 0:00:38]} 64. Nf7 {[%emt 0:00:52]} Bf4 {[%emt 0:00:18]} 65. Nd8 {[%emt 0:02:50]} Kc2 {[%emt 0:00:09]} 66. Nc6 {[%emt 0:00:48]} Kd3 {[%emt 0:01:06]} 67. b6 {[%emt 0:00:39]} Ke3 {[%emt 0:00:13]} 68. Ra3+ {[%emt 0:01:16]} Bd3 {[%emt 0:00:04]} 69. Ra1 {[%emt 0:00:50]} Be4+ {[%emt 0:00:09]} 70. Kh3 {[%emt 0:00:16]} Bxc6 {[%emt 0:00:37]} 71. Ra3+ {[%emt 0:00:30]} Ke2 {[%emt 0:00:09]} 72. Ra2+ {[%emt 0:00:12]} Bd2 {[%emt 0:00:10]} 73. Ra1 {[%emt 0:00:08]} g2 {[%emt 0:00:24]} 0-1

[Event "EIWCC 2018"]
[Site "Vysoke Tatry"]
[Date "2018.04.08"]
[Round "1"]
[White "Charochkina, Daria"]
[Black "Palma, Maria"]
[Result "1-0"]
[ECO "A34"]
[WhiteElo "2326"]
[BlackElo "2060"]
[Annotator "NA RC"]
[PlyCount "57"]
[EventDate "2018.??.??"]
[EventType "swiss"]
[EventCountry "SVK"]
[SourceTitle "playchess.com"]
[Source "ChessBase"]
[SourceQuality "1"]
[TimeControl "40/5400+30:1800+30"]

1. c4 {[%emt 0:00:00]} Nf6 {[%emt 0:00:28]} 2. Nc3 {[%emt 0:00:00]} c5 {[%emt 0:00:21]} 3. Nf3 {[%emt 0:00:00]} d5 {[%emt 0:02:48]} 4. cxd5 {[%emt 0:07:59]} Nxd5 {[%emt 0:00:11]} 5. Qa4+ {[%emt 0:00:02]} Nc6 {[%emt 0:06:31]} 6. Ne5 {[%emt 0:01:15]} Ndb4 {[%emt 0:15:30]} 7. a3 {[%emt 0:09:52]} Nc2+ {[%emt 0:02:05]} 8. Qxc2 {[%emt 0:00:16]} Nxe5 {[%emt 0:00:07]} 9. g3 {[%emt 0:09:54]} Bd7 {[%emt 0:09:24]} 10. Bg2 {[%emt 0:05:43]} Bc6 {[%emt 0:04:51]} 11. O-O {[%emt 0:00:12]} Bxg2 {[%emt 0:04:13]} 12. Kxg2 {[%emt 0:00:07]} e6 {[%emt 0:02:19]} 13. Qe4 {[%emt 0:00:20]} Nc6 {[%emt 0:00:45]} 14. d3 {[%emt 0:00:04]} Be7 {[%emt 0:04:23]} 15. Be3 {[%emt 0:00:06]} Rc8 {[%emt 0:02:10]} 16. Rac1 {[%emt 0:15:31]} O-O $11 {[%emt 0:04:51]} 17. Rfd1 {[%emt 0:02:21]} e5 {[%emt 0:04:45]} 18. Nd5 {[%emt 0:12:20]} b6 {[%emt 0:02:30]} 19. d4 {[%emt 0:10:54]} exd4 {[%emt 0:06:01]} 20. Bxd4 {[%emt 0:00:35]} Bg5 {[%emt 0:04:22]} 21. Bc3 {[%emt 0:04:41]} Bxc1 {[%emt 0:13:43]} 22. Nf6+ {[%emt 0:00:12]} gxf6 {[%emt 0:00:34]} 23. Rxd8 {[%emt 0:02:33]} Rfxd8 {[%emt 0:01:38]} 24. Bxf6 {[%emt 0:01:27]} Kf8 {[%emt 0:04:31]} 25. Qxh7 {[%emt 0:00:26]} Ke8 {[%emt 0:01:15]} 26. Qg8+ {[%emt 0:00:29]} Kd7 {[%emt 0:00:08]} 27. Qxf7+ {[%emt 0:00:03]} Kd6 {[%emt 0:00:55]} 28. Qc4 {[%emt 0:10:48]} Bh6 {[%emt 0:01:36]} 29. Qd3+ {[%emt 0:00:22] Kd5} 1-0

[Event "EIWCC 2018"]
[Site "Vysoke Tatry"]
[Date "2018.04.08"]
[Round "1"]
[White "Theissl Pokorna, Regina"]
[Black "Trisha, Kanyamarala"]
[Result "1-0"]
[ECO "B13"]
[WhiteElo "2320"]
[BlackElo "2031"]
[Annotator "NA RC"]
[PlyCount "79"]
[EventDate "2018.??.??"]
[EventType "swiss"]
[EventCountry "SVK"]
[SourceTitle "playchess.com"]
[Source "ChessBase"]
[SourceQuality "1"]
[TimeControl "40/5400+30:1800+30"]

1. e4 {[%emt 0:00:00]} c6 {[%emt 0:00:14]} 2. d4 {[%emt 0:00:00]} d5 {[%emt 0:00:11]} 3. exd5 {[%emt 0:00:00]} cxd5 {[%emt 0:00:09]} 4. c4 {[%emt 0:00:00]} Nf6 {[%emt 0:00:43]} 5. Nc3 {[%emt 0:00:00]} Nc6 {[%emt 0:00:59]} 6. Bg5 {[%emt 0:00:46]} e6 {[%emt 0:07:53]} 7. Nf3 {[%emt 0:00:24]} Be7 {[%emt 0:00:43]} 8. c5 {[%emt 0:02:57]} O-O {[%emt 0:01:35]} 9. Bb5 {[%emt 0:00:27]} Ne4 {[%emt 0:03:43]} 10. Bxe7 {[%emt 0:00:09]} Nxe7 {[%emt 0:00:44]} 11. Rc1 {[%emt 0:01:34]} Bd7 {[%emt 0:14:10] B14: Caro-Kann: Panov-Botvinnik Attack with 5...e6 and 5...g6} (11... b6 12. c6 Qd6 13. O-O a6 14. Bd3 Nxc6 15. Nxe4 dxe4 16. Bxe4 Bb7 17. d5 exd5 18. Qxd5 Rad8 19. Rxc6 Qxd5 20. Bxd5 {½-½ (33) Naiditsch,A (2712)-Rodshtein,M (2645) Porto Carras 2011}) 12. Bd3 {[%emt 0:04:20]} f5 {[%emt 0:09:49]} 13. O-O {[%emt 0:00:13]} Nc6 {[%emt 0:07:05]} 14. a3 $146 {[%emt 0:10:15]} ({Predecessor:} 14. Bb5 Rb8 15. Qe2 Be8 16. Bxc6 bxc6 17. Ne5 Rb4 18. f3 Nxc3 19. bxc3 {1-0 (41) Hendriks,W (2431)-Brendel,O (2386) Germany 2010}) 14... Be8 {[%emt 0:06:35]} 15. Be2 {[%emt 0:18:04]} Qf6 {[%emt 0:08:31]} 16. Qd3 {[%emt 0:08:02]} g5 {[%emt 0:07:40]} 17. Rcd1 {[%emt 0:14:22]} Bg6 {[%emt 0:05:32]} 18. Ne1 {[%emt 0:09:40] [#]} f4 $1 {[%emt 0:05:00]} 19. Nxe4 $17 {[%emt 0:00:09]} dxe4 {[%emt 0:00:10]} 20. Qc3 {[%emt 0:00:04]} Rad8 {[%emt 0:01:37]} 21. Bc4 {[%emt 0:03:13]} Rfe8 {[%emt 0:04:03]} 22. Nc2 {[%emt 0:02:01]} Kg7 {[%emt 0:11:57]} 23. b4 {[%emt 0:17:52]} Ne7 {[%emt 0:01:48]} 24. b5 {[%emt 0:01:15]} Rc8 {[%emt 0:00:46]} 25. Qb3 {[%emt 0:02:28]} Nf5 {[%emt 0:00:46]} 26. Rfe1 {[%emt 0:00:10]} e5 {[%emt 0:00:33]} 27. dxe5 {[%emt 0:02:02]} Qxe5 {[%emt 0:00:28]} 28. Rd5 {[%emt 0:00:41]} Qe7 {[%emt 0:00:18]} 29. c6 {[%emt 0:00:29]} bxc6 {[%emt 0:00:37]} 30. bxc6 {[%emt 0:00:01]} Rc7 {[%emt 0:00:36]} 31. Qc3+ {[%emt 0:00:23]} Qf6 {[%emt 0:00:20]} 32. Rd7+ {[%emt 0:00:44]} Rxd7 {[%emt 0:00:22]} 33. Qxf6+ {[%emt 0:00:05]} Kxf6 {[%emt 0:00:06]} 34. cxd7 {[%emt 0:00:02]} Rd8 {[%emt 0:00:09]} 35. Rd1 {[%emt 0:00:57]} Ke7 {[%emt 0:00:20]} 36. Bb5 {[%emt 0:01:55]} Bf7 {[%emt 0:01:41]} 37. Nb4 {[%emt 0:00:12]} a6 {[%emt 0:00:35]} 38. Nc6+ {[%emt 0:00:08]} Kf8 {[%emt 0:00:07]} 39. Nxd8 {[%emt 0:00:04]} axb5 {[%emt 0:00:05]} 40. Nxf7 {[%emt 0:00:00]} 1-0

[Event "EIWCC 2018"]
[Site "Vysoke Tatry"]
[Date "2018.04.08"]
[Round "1"]
[White "Chernyak, Viktoria"]
[Black "Szczepkowska, Karina"]
[Result "0-1"]
[ECO "D41"]
[WhiteElo "2196"]
[BlackElo "2403"]
[Annotator "NA RC"]
[PlyCount "82"]
[EventDate "2018.??.??"]
[EventType "swiss"]
[EventCountry "SVK"]
[SourceTitle "playchess.com"]
[Source "ChessBase"]
[SourceQuality "1"]
[TimeControl "40/5400+30:1800+30"]

1. Nf3 {[%emt 0:00:00]} Nf6 {[%emt 0:00:09]} 2. c4 {[%emt 0:00:00]} e6 {[%emt 0:00:13]} 3. Nc3 {[%emt 0:00:00]} d5 {[%emt 0:01:45]} 4. d4 {[%emt 0:00:23]} c5 {[%emt 0:03:36]} 5. cxd5 {[%emt 0:03:54]} exd5 {[%emt 0:01:46]} 6. Bg5 {[%emt 0:01:52]} Be6 {[%emt 0:06:26]} 7. dxc5 {[%emt 0:02:18] D32: Tarrasch Defence: Sidelines and lines without g3} (7. e3 c4 8. Be2 Nc6 9. O-O Bb4 10. Ne5 Bxc3 11. bxc3 h6 12. Bxf6 Qxf6 13. f4 Bf5 14. Bf3 Qd6 15. e4 dxe4 16. Nxc4 {1-0 (28) Vallejo Pons,F (2708)-Roy,P (2300) Pattaya 2015}) 7... Bxc5 {[%emt 0:01:53]} 8. e3 {[%emt 0:01:40]} O-O {[%emt 0:03:00]} 9. Bd3 {[%emt 0:04:34]} Nc6 {[%emt 0:01:26]} 10. O-O {[%emt 0:00:15]} h6 {[%emt 0:01:20]} 11. Bh4 {[%emt 0:01:32]} Be7 {[%emt 0:01:47]} 12. Rc1 {[%emt 0:02:20]} Rc8 {[%emt 0:07:07]} 13. Bb1 $146 {[%emt 0:04:38]} ({Predecessor:} 13. a3 Bg4 14. Bb1 Ne5 15. Bxf6 Bxf6 16. Qc2 g6 17. Nd4 Nc6 18. Nxc6 bxc6 {1-0 (50) Garcia Gil,J (2193)-Asensio Linan,T (2181) Spain 2000}) 13... a6 {[%emt 0:04:37]} 14. Qd3 {[%emt 0:05:27]} g6 {[%emt 0:01:20]} 15. Rfd1 {[%emt 0:02:42]} Qa5 {[%emt 0:06:49]} 16. Ne2 {[%emt 0:08:49]} Bg4 {[%emt 0:06:59]} 17. Ned4 {[%emt 0:08:42]} Qb6 {[%emt 0:02:58]} 18. Nxc6 {[%emt 0:06:45]} bxc6 {[%emt 0:06:07]} 19. Qd4 {[%emt 0:02:49]} c5 {[%emt 0:08:03]} 20. Qd2 {[%emt 0:17:28]} Rfd8 {[%emt 0:02:13]} 21. h3 {[%emt 0:02:57] [#]} Ne4 $19 {[%emt 0:04:46]} 22. Bxe7 {[%emt 0:07:01]} Nxd2 {[%emt 0:00:46]} 23. Bxd8 {[%emt 0:00:17]} Qxd8 {[%emt 0:06:12]} 24. Rxd2 {[%emt 0:00:45]} Bxf3 {[%emt 0:00:07]} 25. gxf3 {[%emt 0:00:05]} d4 {[%emt 0:01:01]} 26. f4 {[%emt 0:03:14]} Qa5 {[%emt 0:03:24]} 27. Rcd1 {[%emt 0:00:58]} dxe3 {[%emt 0:00:15]} 28. fxe3 {[%emt 0:00:04]} c4 {[%emt 0:00:08]} 29. Kf2 {[%emt 0:04:43]} Kg7 {[%emt 0:01:29]} 30. Rd7 {[%emt 0:00:54]} Rb8 {[%emt 0:02:16]} 31. R7d2 {[%emt 0:00:33]} Qh5 {[%emt 0:00:44]} 32. Rh1 {[%emt 0:00:28]} Qh4+ {[%emt 0:00:19]} 33. Kf3 {[%emt 0:01:05]} Qf6 {[%emt 0:00:32]} 34. Rd4 {[%emt 0:01:40]} Qe6 {[%emt 0:02:58]} 35. Rh2 {[%emt 0:01:07]} Re8 {[%emt 0:01:26]} 36. e4 {[%emt 0:00:11]} Qb6 {[%emt 0:01:26]} 37. Rd1 {[%emt 0:01:11]} Rd8 {[%emt 0:01:09]} 38. Rc1 {[%emt 0:02:44]} Rd4 {[%emt 0:00:16]} 39. Re2 {[%emt 0:01:04]} Qd8 {[%emt 0:00:15]} 40. Rc3 {[%emt 0:00:00]} Qh4 {[%emt 0:01:19]} 41. Rh2 {[%emt 0:02:49]} Rd1 {[%emt 0:01:01]} 0-1